[Event "*** Titled Tuesday Blitz"]
[Site "Chess.com"]
[Date "2020.04.07"]
[Round "7"]
[White "SanchezKelvin"]
[Black "ferdipy"]
[Result "1/2-1/2"]
[WhiteElo "2325"]
[BlackElo "2173"]
[TimeControl "180+1"]
[EndTime "14:21:06 PDT"]
[Termination "Game drawn by repetition"]

1. d4 {[%clk 0:03:00.9]} 1... Nf6 {[%clk 0:02:59.3]} 2. c4 {[%clk 0:02:57]} 2...
e6 {[%clk 0:02:57.8]} 3. Nf3 {[%clk 0:02:56.6]} 3... Bb4+ {[%clk 0:02:57.2]} 4.
Nbd2 {[%clk 0:02:56]} 4... O-O {[%clk 0:02:54.6]} 5. g3 {[%clk 0:02:55.2]} 5...
b6 {[%clk 0:02:54.6]} 6. Bg2 {[%clk 0:02:55.2]} 6... Bb7 {[%clk 0:02:54.9]} 7.
O-O {[%clk 0:02:55.2]} 7... Re8 {[%clk 0:02:54.9]} 8. Nb3 {[%clk 0:02:54.1]}
8... Bf8 {[%clk 0:02:50.7]} 9. a4 {[%clk 0:02:38.3]} 9... c5 {[%clk 0:02:44.1]}
10. d5 {[%clk 0:02:35.3]} 10... exd5 {[%clk 0:02:41.1]} 11. Nh4 {[%clk
0:02:35.4]} 11... g6 {[%clk 0:02:40]} 12. a5 {[%clk 0:02:34]} 12... Bg7 {[%clk
0:02:32.3]} 13. Re1 {[%clk 0:02:33.3]} 13... Qc8 {[%clk 0:02:18.9]} 14. cxd5
{[%clk 0:02:31.8]} 14... d6 {[%clk 0:02:14.2]} 15. e4 {[%clk 0:02:31.1]} 15...
Nfd7 {[%clk 0:02:06.9]} 16. Bh3 {[%clk 0:02:22.9]} 16... Qc7 {[%clk 0:02:01.1]}
17. Nd2 {[%clk 0:02:21.4]} 17... b5 {[%clk 0:01:50.3]} 18. Qc2 {[%clk 0:02:17]}
18... Na6 {[%clk 0:01:47.9]} 19. Bf1 {[%clk 0:02:08.1]} 19... Nb4 {[%clk
0:01:46.9]} 20. Qd1 {[%clk 0:02:07.8]} 20... a6 {[%clk 0:01:43.7]} 21. Ra3
{[%clk 0:02:00.9]} 21... c4 {[%clk 0:01:40.6]} 22. Nhf3 {[%clk 0:01:53.7]} 22...
Nc5 {[%clk 0:01:36.7]} 23. Nb1 {[%clk 0:01:48.4]} 23... Nxe4 {[%clk 0:01:28.2]}
24. Bf4 {[%clk 0:01:44.2]} 24... Nxd5 {[%clk 0:01:22.9]} 25. Bc1 {[%clk
0:01:37.5]} 25... Qc5 {[%clk 0:01:07.2]} 26. Be3 {[%clk 0:01:30]} 26... Nxe3
{[%clk 0:01:06.3]} 27. Raxe3 {[%clk 0:01:30.9]} 27... d5 {[%clk 0:00:50]} 28.
Nbd2 {[%clk 0:01:25.8]} 28... Bxb2 {[%clk 0:00:42.3]} 29. Qc2 {[%clk 0:01:16.1]}
29... Bg7 {[%clk 0:00:41]} 30. Nxe4 {[%clk 0:01:14.7]} 30... dxe4 {[%clk
0:00:41.9]} 31. Nd2 {[%clk 0:01:14]} 31... Bd4 {[%clk 0:00:39.3]} 32. Nxe4
{[%clk 0:01:10.2]} 32... Bxe4 {[%clk 0:00:38.6]} 33. Rxe4 {[%clk 0:01:09.9]}
33... Rxe4 {[%clk 0:00:38]} 34. Rxe4 {[%clk 0:01:07.6]} 34... Rd8 {[%clk
0:00:34.6]} 35. Kg2 {[%clk 0:01:07.1]} 35... Qd5 {[%clk 0:00:34.4]} 36. f3
{[%clk 0:01:04.2]} 36... Bg7 {[%clk 0:00:34.2]} 37. Qe2 {[%clk 0:00:58.7]} 37...
Qd2 {[%clk 0:00:33.6]} 38. Re8+ {[%clk 0:00:58.2]} 38... Bf8 {[%clk 0:00:33]}
39. Rxd8 {[%clk 0:00:49.2]} 39... Qxd8 {[%clk 0:00:33.9]} 40. Qe5 {[%clk
0:00:42.2]} 40... Qxa5 {[%clk 0:00:32.5]} 41. Bxc4 {[%clk 0:00:39.7]} 41... Qd2+
{[%clk 0:00:30.9]} 42. Be2 {[%clk 0:00:39.5]} 42... b4 {[%clk 0:00:27]} 43. Kh3
{[%clk 0:00:39.3]} 43... Qd7+ {[%clk 0:00:20.6]} 44. g4 {[%clk 0:00:39]} 44...
Qe6 {[%clk 0:00:20.4]} 45. Qxe6 {[%clk 0:00:34.7]} 45... fxe6 {[%clk 0:00:20.8]}
46. Bxa6 {[%clk 0:00:34.8]} 46... Kf7 {[%clk 0:00:20.9]} 47. Bc4 {[%clk
0:00:34.3]} 47... Kf6 {[%clk 0:00:21]} 48. f4 {[%clk 0:00:34.1]} 48... Bd6
{[%clk 0:00:20.6]} 49. f5 {[%clk 0:00:25.4]} 49... exf5 {[%clk 0:00:20.4]} 50.
gxf5 {[%clk 0:00:25.7]} 50... Kxf5 {[%clk 0:00:21.3]} 51. Kg2 {[%clk 0:00:23]}
51... h5 {[%clk 0:00:21.5]} 52. h4 {[%clk 0:00:22.8]} 52... Be7 {[%clk
0:00:18.5]} 53. Kh3 {[%clk 0:00:22.5]} 53... g5 {[%clk 0:00:16.9]} 54. hxg5
{[%clk 0:00:22.6]} 54... Bxg5 {[%clk 0:00:17.8]} 55. Kh2 {[%clk 0:00:22.2]}
55... Ke4 {[%clk 0:00:18]} 56. Kh1 {[%clk 0:00:22.1]} 56... Kd4 {[%clk
0:00:17.7]} 57. Bg8 {[%clk 0:00:22.4]} 57... h4 {[%clk 0:00:17.2]} 58. Kh2
{[%clk 0:00:22.4]} 58... Ke3 {[%clk 0:00:17.5]} 59. Kh1 {[%clk 0:00:22.5]} 59...
Kf3 {[%clk 0:00:17.8]} 60. Bb3 {[%clk 0:00:22.4]} 60... Kg4 {[%clk 0:00:18]} 61.
Bc4 {[%clk 0:00:22.3]} 61... Kf4 {[%clk 0:00:18.5]} 62. Bb3 {[%clk 0:00:22.3]}
62... Kg3 {[%clk 0:00:19]} 63. Bc4 {[%clk 0:00:22.6]} 63... h3 {[%clk
0:00:19.5]} 64. Bb3 {[%clk 0:00:22.2]} 64... Be3 {[%clk 0:00:18.7]} 65. Bc4
{[%clk 0:00:22.3]} 65... h2 {[%clk 0:00:16.2]} 66. Bb3 {[%clk 0:00:22.6]} 66...
Bg1 {[%clk 0:00:16.8]} 67. Bc4 {[%clk 0:00:22.8]} 67... Kf2 {[%clk 0:00:17.3]}
68. Bb3 {[%clk 0:00:23.6]} 68... Ke1 {[%clk 0:00:17.8]} 69. Be6 {[%clk
0:00:23.1]} 69... Kd2 {[%clk 0:00:18.7]} 70. Bb3 {[%clk 0:00:22.7]} 70... Kc3
{[%clk 0:00:19.6]} 71. Be6 {[%clk 0:00:23.6]} 71... Kd4 {[%clk 0:00:20]} 72. Bf7
{[%clk 0:00:23.5]} 72... Kc3 {[%clk 0:00:20.9]} 73. Bg8 {[%clk 0:00:23.4]} 73...
Kb2 {[%clk 0:00:21.8]} 74. Bf7 {[%clk 0:00:23.2]} 74... Kc1 {[%clk 0:00:22.7]}
75. Be6 {[%clk 0:00:23.1]} 75... Kd2 {[%clk 0:00:23.1]} 76. Bd5 {[%clk 0:00:23]}
76... Ke3 {[%clk 0:00:24]} 77. Be6 {[%clk 0:00:22.9]} 77... Kd4 {[%clk
0:00:24.9]} 78. Bg8 {[%clk 0:00:22.3]} 78... Ke5 {[%clk 0:00:25]} 79. Bf7 {[%clk
0:00:22.4]} 79... Kd4 {[%clk 0:00:25.3]} 80. Bb3 {[%clk 0:00:23.3]} 80... Kc3
{[%clk 0:00:25.6]} 81. Bg8 {[%clk 0:00:24.2]} 81... Kb2 {[%clk 0:00:25.8]} 82.
Bf7 {[%clk 0:00:24.1]} 82... Kc2 {[%clk 0:00:25.6]} 83. Bg8 {[%clk 0:00:24]}
83... Kc3 {[%clk 0:00:26.4]} 84. Bf7 {[%clk 0:00:24]} 84... Kc2 {[%clk
0:00:27.3]} 85. Bg6+ {[%clk 0:00:23.5]} 85... Kc3 {[%clk 0:00:28.2]} 86. Bf7
{[%clk 0:00:24.4]} 86... Kd2 {[%clk 0:00:29.1]} 87. Bg8 {[%clk 0:00:24.1]} 87...
Ke3 {[%clk 0:00:30]} 88. Bf7 {[%clk 0:00:24.1]} 88... Kf4 {[%clk 0:00:30.9]} 89.
Bg8 {[%clk 0:00:24.4]} 89... Kg5 {[%clk 0:00:31.8]} 90. Bb3 {[%clk 0:00:24.6]}
90... Kh6 {[%clk 0:00:32.7]} 91. Bc4 {[%clk 0:00:24.7]} 91... Kg7 {[%clk
0:00:33.6]} 92. Bb3 {[%clk 0:00:25.6]} 92... Kf6 {[%clk 0:00:34.5]} 93. Bc4
{[%clk 0:00:26.3]} 93... Ke5 {[%clk 0:00:35.4]} 94. Bb3 {[%clk 0:00:27.2]} 94...
Kd4 {[%clk 0:00:36.3]} 95. Bg8 {[%clk 0:00:27.8]} 95... Kc3 {[%clk 0:00:36.2]}
96. Bf7 {[%clk 0:00:27.8]} 1/2-1/2

[Event "*** Titled Tuesday Blitz"]
[Site "Chess.com"]
[Date "2020.04.07"]
[Round "7"]
[White "GuerrieroFromLevant"]
[Black "suyu28"]
[Result "0-1"]
[WhiteElo "2323"]
[BlackElo "2499"]
[TimeControl "180+1"]
[EndTime "14:21:18 PDT"]
[Termination "suyu28 won by resignation"]

1. e4 {[%clk 0:03:00.9]} 1... e5 {[%clk 0:02:58.5]} 2. Nf3 {[%clk 0:02:59.2]}
2... Nc6 {[%clk 0:02:59]} 3. Bb5 {[%clk 0:02:59.1]} 3... a6 {[%clk 0:02:58.9]}
4. Ba4 {[%clk 0:02:58.9]} 4... Nf6 {[%clk 0:02:59.5]} 5. O-O {[%clk 0:02:58.5]}
5... b5 {[%clk 0:03:00.1]} 6. Bb3 {[%clk 0:02:58.4]} 6... Be7 {[%clk 0:03:01]}
7. d4 {[%clk 0:02:56.9]} 7... d6 {[%clk 0:01:55.1]} 8. dxe5 {[%clk 0:02:55.3]}
8... Nxe5 {[%clk 0:01:52]} 9. Nxe5 {[%clk 0:02:53]} 9... dxe5 {[%clk 0:01:52.9]}
10. Qxd8+ {[%clk 0:02:53.1]} 10... Bxd8 {[%clk 0:01:52.9]} 11. Nc3 {[%clk
0:02:43.5]} 11... c6 {[%clk 0:01:46.9]} 12. Bg5 {[%clk 0:02:37]} 12... h6 {[%clk
0:01:40.2]} 13. Bxf6 {[%clk 0:02:36.3]} 13... Bxf6 {[%clk 0:01:39.6]} 14. Rad1
{[%clk 0:02:36.6]} 14... Ke7 {[%clk 0:01:36.4]} 15. Rd3 {[%clk 0:02:34]} 15...
Bb7 {[%clk 0:01:34.2]} 16. Rfd1 {[%clk 0:02:33.6]} 16... Rhd8 {[%clk 0:01:09.1]}
17. Rxd8 {[%clk 0:02:31.8]} 17... Rxd8 {[%clk 0:01:10]} 18. Rxd8 {[%clk
0:02:32.4]} 18... Kxd8 {[%clk 0:01:10.9]} 19. Bxf7 {[%clk 0:02:33]} 19... Ke7
{[%clk 0:01:11.6]} 20. Bb3 {[%clk 0:02:29.6]} 20... Kd6 {[%clk 0:01:11.9]} 21.
Kf1 {[%clk 0:02:28.7]} 21... Bg5 {[%clk 0:01:10]} 22. Ke2 {[%clk 0:02:26.7]}
22... Bc1 {[%clk 0:01:08.7]} 23. Nd1 {[%clk 0:02:26.8]} 23... c5 {[%clk
0:01:08.2]} 24. c4 {[%clk 0:02:19]} 24... Bxe4 {[%clk 0:01:04.8]} 25. Nc3 {[%clk
0:02:17.3]} 25... Bxg2 {[%clk 0:00:59.3]} 26. cxb5 {[%clk 0:02:13.4]} 26... Bxb2
{[%clk 0:00:55]} 27. Nd1 {[%clk 0:02:12.7]} 27... Bd4 {[%clk 0:00:53.3]} 28.
bxa6 {[%clk 0:02:12.8]} 28... Kc7 {[%clk 0:00:48.5]} 29. Ne3 {[%clk 0:02:10.7]}
29... Bc6 {[%clk 0:00:47.3]} 30. Bc4 {[%clk 0:02:05.2]} 30... Kb6 {[%clk
0:00:46.2]} 31. Nf5 {[%clk 0:02:05]} 31... Ka5 {[%clk 0:00:37.6]} 32. Nd6 {[%clk
0:01:32.5]} 32... Kb4 {[%clk 0:00:27.4]} 33. f3 {[%clk 0:01:23.1]} 33... Ba8
{[%clk 0:00:22.8]} 34. Bd3 {[%clk 0:01:18.4]} 34... g5 {[%clk 0:00:21.4]} 35.
Be4 {[%clk 0:01:02.3]} 35... Bxe4 {[%clk 0:00:20.9]} 36. fxe4 {[%clk 0:01:02.4]}
36... c4 {[%clk 0:00:21.5]} 37. Nc8 {[%clk 0:01:03.1]} 37... Ka3 {[%clk
0:00:21.6]} 38. a7 {[%clk 0:01:02.5]} 38... Bxa7 {[%clk 0:00:21.7]} 39. Nxa7
{[%clk 0:01:03.4]} 39... Kxa2 {[%clk 0:00:21]} 40. Nc6 {[%clk 0:01:00.9]} 40...
c3 {[%clk 0:00:18.7]} 41. Nxe5 {[%clk 0:01:01.5]} 41... Kb3 {[%clk 0:00:16.6]}
42. Nd3 {[%clk 0:01:02.4]} 42... Kc4 {[%clk 0:00:17]} 43. Ke3 {[%clk 0:01:01.4]}
43... c2 {[%clk 0:00:17]} 44. Nc1 {[%clk 0:01:01.6]} 44... h5 {[%clk 0:00:16.8]}
45. Ne2 {[%clk 0:00:58.2]} 45... g4 {[%clk 0:00:16.9]} 46. Nc1 {[%clk
0:00:52.6]} 46... h4 {[%clk 0:00:17]} 47. Kf4 {[%clk 0:00:52.3]} 47... g3 {[%clk
0:00:15.7]} 48. hxg3 {[%clk 0:00:52.5]} 48... h3 {[%clk 0:00:15.2]} 49. Kf3
{[%clk 0:00:52.2]} 49... Kc3 {[%clk 0:00:15.6]} 50. e5 {[%clk 0:00:48.3]} 50...
Kd2 {[%clk 0:00:16]} 51. Na2 {[%clk 0:00:41.6]} 51... Ke1 {[%clk 0:00:12.6]} 52.
e6 {[%clk 0:00:39.6]} 52... Kf1 {[%clk 0:00:12.9]} 53. e7 {[%clk 0:00:39.5]}
53... h2 {[%clk 0:00:13.2]} 54. e8=Q {[%clk 0:00:38.4]} 54... h1=Q+ {[%clk
0:00:13.7]} 55. Kg4 {[%clk 0:00:37.6]} 55... Qd5 {[%clk 0:00:11.8]} 56. Qf8+
{[%clk 0:00:33.1]} 56... Kg2 {[%clk 0:00:11.8]} 57. Qa3 {[%clk 0:00:28]} 57...
Qc4+ {[%clk 0:00:08.3]} 58. Kg5 {[%clk 0:00:25.4]} 58... Qd5+ {[%clk 0:00:08.6]}
59. Kf4 {[%clk 0:00:25.5]} 59... Qd4+ {[%clk 0:00:08.6]} 60. Kf5 {[%clk
0:00:25.5]} 60... Qd5+ {[%clk 0:00:09]} 61. Kf6 {[%clk 0:00:25.5]} 61... Qd4+
{[%clk 0:00:08.4]} 62. Ke6 {[%clk 0:00:24.8]} 62... Qe4+ {[%clk 0:00:08.6]} 63.
Kd6 {[%clk 0:00:24]} 63... Qg6+ {[%clk 0:00:08.7]} 64. Kc7 {[%clk 0:00:23.1]}
64... Qg7+ {[%clk 0:00:08.6]} 65. Kb6 {[%clk 0:00:23]} 65... Qg6+ {[%clk
0:00:08.4]} 66. Kb5 {[%clk 0:00:23.1]} 66... Qxg3 {[%clk 0:00:08.2]} 67. Qc1
{[%clk 0:00:19.4]} 67... Qd3+ {[%clk 0:00:08]} 68. Ka4 {[%clk 0:00:18.6]} 68...
Qc4+ {[%clk 0:00:07.3]} 69. Nb4 {[%clk 0:00:17.5]} 69... Qc3 {[%clk 0:00:07.7]}
70. Nxc2 {[%clk 0:00:15.9]} 70... Qc4+ {[%clk 0:00:08.2]} 71. Ka3 {[%clk
0:00:14.8]} 71... Qc3+ {[%clk 0:00:08.6]} 72. Ka2 {[%clk 0:00:15.2]} 72... Qc4+
{[%clk 0:00:09.1]} 73. Kb2 {[%clk 0:00:14.8]} 73... Qb5+ {[%clk 0:00:09.5]} 74.
Kc3 {[%clk 0:00:13.7]} 74... Qc5+ {[%clk 0:00:10]} 75. Kd2 {[%clk 0:00:13.7]}
75... Qd5+ {[%clk 0:00:10.1]} 76. Ke1 {[%clk 0:00:13.5]} 76... Qa5+ {[%clk
0:00:09.2]} 77. Ke2 {[%clk 0:00:12.8]} 77... Qb5+ {[%clk 0:00:09.6]} 78. Kd2
{[%clk 0:00:12.5]} 78... Qa5+ {[%clk 0:00:09.9]} 79. Kd1 {[%clk 0:00:11.9]}
79... Qd5+ {[%clk 0:00:09.4]} 80. Ke2 {[%clk 0:00:11.1]} 80... Qb5+ {[%clk
0:00:08.3]} 81. Kd2 {[%clk 0:00:08.8]} 81... Qa5+ {[%clk 0:00:08.2]} 82. Kd3
{[%clk 0:00:08.4]} 82... Qa6+ {[%clk 0:00:08.5]} 83. Kd4 {[%clk 0:00:08]} 83...
Qa7+ {[%clk 0:00:08.9]} 84. Ke4 {[%clk 0:00:07.2]} 84... Qb7+ {[%clk 0:00:08.9]}
85. Kf4 {[%clk 0:00:06.9]} 85... Qc7+ {[%clk 0:00:08.4]} 86. Kg4 {[%clk
0:00:06.3]} 86... Qg7+ {[%clk 0:00:08]} 87. Kf4 {[%clk 0:00:06.7]} 87... Qh6+
{[%clk 0:00:08.3]} 88. Ke4 {[%clk 0:00:06.8]} 88... Qxc1 {[%clk 0:00:09.2]} 89.
Ne3+ {[%clk 0:00:07.5]} 89... Kh1 {[%clk 0:00:08.6]} 0-1

[Event "*** Titled Tuesday Blitz"]
[Site "Chess.com"]
[Date "2020.04.07"]
[Round "7"]
[White "GeorgMeier"]
[Black "VerdeNotte"]
[Result "1-0"]
[WhiteElo "3003"]
[BlackElo "2743"]
[TimeControl "180+1"]
[EndTime "14:21:35 PDT"]
[Termination "GeorgMeier won by resignation"]

1. Nf3 {[%clk 0:03:00.9]} 1... c5 {[%clk 0:02:59.7]} 2. g3 {[%clk 0:03:00.5]}
2... Nc6 {[%clk 0:02:59.5]} 3. c4 {[%clk 0:03:00.6]} 3... g6 {[%clk 0:02:59.4]}
4. Nc3 {[%clk 0:03:00.5]} 4... Bg7 {[%clk 0:02:59.5]} 5. Bg2 {[%clk 0:03:00.8]}
5... d6 {[%clk 0:02:57]} 6. O-O {[%clk 0:03:00.3]} 6... e6 {[%clk 0:02:57.4]} 7.
a3 {[%clk 0:02:55]} 7... Nge7 {[%clk 0:02:57.2]} 8. Rb1 {[%clk 0:02:51.8]} 8...
a5 {[%clk 0:02:56.8]} 9. d3 {[%clk 0:02:51.2]} 9... O-O {[%clk 0:02:56]} 10. Bd2
{[%clk 0:02:47.3]} 10... Rb8 {[%clk 0:02:41.8]} 11. Qa4 {[%clk 0:02:44.3]} 11...
b6 {[%clk 0:02:35.9]} 12. Rfc1 {[%clk 0:02:44.1]} 12... Bb7 {[%clk 0:02:34.3]}
13. e3 {[%clk 0:02:27.8]} 13... Ne5 {[%clk 0:02:32.3]} 14. Nxe5 {[%clk
0:02:24.5]} 14... dxe5 {[%clk 0:02:32.5]} 15. Qc2 {[%clk 0:02:19.6]} 15... Bxg2
{[%clk 0:02:29.9]} 16. Kxg2 {[%clk 0:02:20.5]} 16... Rb7 {[%clk 0:02:29]} 17. b4
{[%clk 0:02:12.7]} 17... axb4 {[%clk 0:02:28.2]} 18. axb4 {[%clk 0:02:13]} 18...
Rd7 {[%clk 0:02:28.4]} 19. bxc5 {[%clk 0:02:06.5]} 19... bxc5 {[%clk 0:02:23.3]}
20. Ne4 {[%clk 0:02:00.3]} 20... Rxd3 {[%clk 0:01:57.2]} 21. Be1 {[%clk
0:01:20.7]} 21... Nf5 {[%clk 0:01:33.1]} 22. Kg1 {[%clk 0:00:51.6]} 22... Ra3
{[%clk 0:01:31.8]} 23. Nxc5 {[%clk 0:00:49.5]} 23... Qa8 {[%clk 0:01:31.5]} 24.
Qe4 {[%clk 0:00:45.3]} 24... Qa7 {[%clk 0:01:24.6]} 25. Bb4 {[%clk 0:00:42.6]}
25... Ra2 {[%clk 0:01:18.6]} 26. Nxe6 {[%clk 0:00:37.2]} 26... fxe6 {[%clk
0:00:54.4]} 27. Bxf8 {[%clk 0:00:36.1]} 27... Bxf8 {[%clk 0:00:55.3]} 28. Qxe5
{[%clk 0:00:28.5]} 28... Qf7 {[%clk 0:00:55.1]} 29. Rb2 {[%clk 0:00:22.5]} 29...
Bd6 {[%clk 0:00:37.1]} 30. Qc3 {[%clk 0:00:20.6]} 30... Ra3 {[%clk 0:00:37.5]}
31. Rb3 {[%clk 0:00:18.4]} 31... Ra8 {[%clk 0:00:24.9]} 32. c5 {[%clk
0:00:17.8]} 32... Rc8 {[%clk 0:00:25.1]} 33. Rb5 {[%clk 0:00:15.5]} 33... Bf8
{[%clk 0:00:21]} 34. Qb3 {[%clk 0:00:13.9]} 34... h5 {[%clk 0:00:20.1]} 35. Rb8
{[%clk 0:00:13.6]} 35... Rc7 {[%clk 0:00:18.2]} 36. c6 {[%clk 0:00:13.2]} 36...
Kh7 {[%clk 0:00:18.2]} 37. Rb7 {[%clk 0:00:13.4]} 37... Bd6 {[%clk 0:00:18.2]}
38. Rxc7 {[%clk 0:00:13.2]} 38... Bxc7 {[%clk 0:00:18.9]} 39. Rd1 {[%clk
0:00:13.6]} 39... Nd6 {[%clk 0:00:18.4]} 40. Qb4 {[%clk 0:00:12]} 40... Qf8
{[%clk 0:00:14.5]} 41. Qf4 {[%clk 0:00:10]} 41... Qe7 {[%clk 0:00:11.8]} 42. h4
{[%clk 0:00:09.9]} 42... e5 {[%clk 0:00:11.2]} 43. Qb4 {[%clk 0:00:08.8]} 43...
e4 {[%clk 0:00:11]} 44. Qd4 {[%clk 0:00:08.3]} 44... Qf7 {[%clk 0:00:10.6]} 45.
Qd5 {[%clk 0:00:08.3]} 45... Qf3 {[%clk 0:00:10.7]} 46. Rd2 {[%clk 0:00:08.7]}
46... Qf6 {[%clk 0:00:10.2]} 47. Qd4 {[%clk 0:00:08.3]} 47... Qe6 {[%clk
0:00:09.9]} 48. Qa7 {[%clk 0:00:07.6]} 48... Qe7 {[%clk 0:00:08.8]} 49. Qa2
{[%clk 0:00:07.7]} 49... Kg7 {[%clk 0:00:08.4]} 50. Qd5 {[%clk 0:00:07.7]} 50...
Qf8 {[%clk 0:00:06]} 51. Ra2 {[%clk 0:00:07.1]} 51... Qb8 {[%clk 0:00:04.7]} 52.
Kg2 {[%clk 0:00:06.4]} 52... Qc8 {[%clk 0:00:02.7]} 53. Ra7 {[%clk 0:00:05.7]}
53... Qb8 {[%clk 0:00:03.1]} 54. Qd4+ {[%clk 0:00:04.4]} 54... Kf7 {[%clk
0:00:03]} 55. Qd5+ {[%clk 0:00:04]} 55... Ke7 {[%clk 0:00:03.1]} 56. Ra2 {[%clk
0:00:04.2]} 56... Qd8 {[%clk 0:00:02.4]} 57. Qe5+ {[%clk 0:00:04]} 57... Kf7
{[%clk 0:00:02.9]} 58. Rd2 {[%clk 0:00:04.1]} 58... Qe7 {[%clk 0:00:03.2]} 59.
Qxe7+ {[%clk 0:00:03]} 59... Kxe7 {[%clk 0:00:04.1]} 60. Rd5 {[%clk 0:00:03.4]}
60... Ke6 {[%clk 0:00:04.6]} 61. Rg5 {[%clk 0:00:03.1]} 61... Kf6 {[%clk
0:00:05]} 62. g4 {[%clk 0:00:03.3]} 62... hxg4 {[%clk 0:00:04.8]} 63. Rxg4
{[%clk 0:00:03.6]} 63... Nf5 {[%clk 0:00:05.3]} 64. Rxe4 {[%clk 0:00:03.3]}
64... Ne7 {[%clk 0:00:05.4]} 65. Rc4 {[%clk 0:00:02.8]} 65... Ke5 {[%clk
0:00:05.3]} 66. Rg4 {[%clk 0:00:01.8]} 66... Kd5 {[%clk 0:00:04.8]} 67. h5
{[%clk 0:00:02.2]} 67... gxh5 {[%clk 0:00:04.8]} 68. Rg5+ {[%clk 0:00:02.5]}
68... Kxc6 {[%clk 0:00:05.1]} 69. Rxh5 {[%clk 0:00:03.4]} 69... Kd7 {[%clk
0:00:05.6]} 70. Kf3 {[%clk 0:00:03.6]} 70... Ke6 {[%clk 0:00:05.9]} 71. Ke4
{[%clk 0:00:03.7]} 71... Ng8 {[%clk 0:00:06.3]} 72. Rh1 {[%clk 0:00:02.7]} 72...
Nf6+ {[%clk 0:00:07.1]} 73. Kf3 {[%clk 0:00:03.2]} 73... Kf5 {[%clk 0:00:07.6]}
74. Ke2 {[%clk 0:00:03.6]} 74... Ne4 {[%clk 0:00:07.2]} 75. Rg1 {[%clk
0:00:03.3]} 75... Be5 {[%clk 0:00:04.9]} 76. Rg8 {[%clk 0:00:03.1]} 76... Nf6
{[%clk 0:00:05.1]} 77. Rf8 {[%clk 0:00:03.1]} 77... Ke6 {[%clk 0:00:05.6]} 78.
Ra8 {[%clk 0:00:03.6]} 78... Bd6 {[%clk 0:00:06]} 79. Ra6 {[%clk 0:00:04.5]}
79... Kd5 {[%clk 0:00:06.1]} 80. f4 {[%clk 0:00:04.8]} 80... Nd7 {[%clk
0:00:06.5]} 81. Ra5+ {[%clk 0:00:04.6]} 81... Ke6 {[%clk 0:00:06.7]} 82. Kf3
{[%clk 0:00:05]} 82... Nc5 {[%clk 0:00:06.8]} 83. Rb5 {[%clk 0:00:05.5]} 83...
Kd5 {[%clk 0:00:06.4]} 84. e4+ {[%clk 0:00:04.7]} 84... Kc4 {[%clk 0:00:06.9]}
85. Rb6 {[%clk 0:00:04.1]} 85... Be7 {[%clk 0:00:05.9]} 86. Rc6 {[%clk
0:00:04.3]} 86... Kb5 {[%clk 0:00:05.9]} 87. Rc7 {[%clk 0:00:04.3]} 87... Bd6
{[%clk 0:00:06.3]} 88. Rc8 {[%clk 0:00:04.7]} 88... Nd7 {[%clk 0:00:05.8]} 89.
Rd8 {[%clk 0:00:03.9]} 89... Kc6 {[%clk 0:00:05.2]} 90. Rh8 {[%clk 0:00:04.3]}
90... Kc5 {[%clk 0:00:04.3]} 91. Rh6 {[%clk 0:00:03.9]} 91... Be7 {[%clk
0:00:04.3]} 92. e5 {[%clk 0:00:03.5]} 92... Nf8 {[%clk 0:00:04.1]} 93. Ra6
{[%clk 0:00:03.2]} 93... Kd5 {[%clk 0:00:04.2]} 94. Ra5+ {[%clk 0:00:02.7]}
94... Ke6 {[%clk 0:00:04.7]} 95. Ke4 {[%clk 0:00:03.1]} 95... Bb4 {[%clk
0:00:04.6]} 96. Ra6+ {[%clk 0:00:03.2]} 96... Kd7 {[%clk 0:00:04.8]} 97. f5
{[%clk 0:00:04.1]} 97... Bc3 {[%clk 0:00:04.9]} 98. Ra7+ {[%clk 0:00:04.2]}
98... Kc6 {[%clk 0:00:05.1]} 99. e6 {[%clk 0:00:03.9]} 99... Bf6 {[%clk
0:00:03.8]} 100. Rf7 {[%clk 0:00:03.8]} 100... Nxe6 {[%clk 0:00:02.2]} 101. Rxf6
{[%clk 0:00:03.4]} 101... Kd7 {[%clk 0:00:02.4]} 102. Rxe6 {[%clk 0:00:03.6]}
102... Kd8 {[%clk 0:00:03.3]} 103. Ke5 {[%clk 0:00:04]} 103... Kd7 {[%clk
0:00:04.2]} 104. Kf6 {[%clk 0:00:04.9]} 1-0

[Event "*** Titled Tuesday Blitz"]
[Site "Chess.com"]
[Date "2020.04.07"]
[Round "8"]
[White "Philosopherrr"]
[Black "kleinebeer98"]
[Result "1-0"]
[WhiteElo "2451"]
[BlackElo "2709"]
[TimeControl "180+1"]
[EndTime "14:28:59 PDT"]
[Termination "Philosopherrr won by resignation"]

1. e4 {[%clk 0:03:00]} 1... e5 {[%clk 0:02:57.9]} 2. Nf3 {[%clk 0:02:59.8]} 2...
Nc6 {[%clk 0:02:58.3]} 3. Bb5 {[%clk 0:03:00.1]} 3... f5 {[%clk 0:02:58.7]} 4.
d3 {[%clk 0:02:58.9]} 4... fxe4 {[%clk 0:02:58.5]} 5. dxe4 {[%clk 0:02:59.3]}
5... Nf6 {[%clk 0:02:59.1]} 6. O-O {[%clk 0:02:59.5]} 6... d6 {[%clk 0:02:59]}
7. Qd3 {[%clk 0:02:49.8]} 7... Be7 {[%clk 0:02:54.7]} 8. a3 {[%clk 0:02:48.7]}
8... O-O {[%clk 0:02:54.4]} 9. Nc3 {[%clk 0:02:43]} 9... Kh8 {[%clk 0:02:52.9]}
10. h3 {[%clk 0:02:42.5]} 10... Qe8 {[%clk 0:02:48.8]} 11. Nd5 {[%clk 0:02:40]}
11... Bd8 {[%clk 0:02:48.9]} 12. Be3 {[%clk 0:02:26.3]} 12... Qh5 {[%clk
0:02:41.5]} 13. Nxf6 {[%clk 0:02:14.6]} 13... Rxf6 {[%clk 0:02:42.4]} 14. Nh2
{[%clk 0:02:13.7]} 14... Bxh3 {[%clk 0:02:36.6]} 15. gxh3 {[%clk 0:02:07.4]}
15... Qxh3 {[%clk 0:02:37.5]} 16. Kh1 {[%clk 0:02:02.3]} 16... Rh6 {[%clk
0:02:36.6]} 17. Bxh6 {[%clk 0:02:01.4]} 1-0

[Event "*** Titled Tuesday Blitz"]
[Site "Chess.com"]
[Date "2020.04.07"]
[Round "8"]
[White "IgorBjelobrk"]
[Black "erlesfar"]
[Result "1-0"]
[WhiteElo "2608"]
[BlackElo "2028"]
[TimeControl "180+1"]
[EndTime "14:29:18 PDT"]
[Termination "IgorBjelobrk won by resignation"]

1. d4 {[%clk 0:03:00.9]} 1... Nf6 {[%clk 0:02:59.2]} 2. c4 {[%clk 0:03:00.3]}
2... c5 {[%clk 0:02:59]} 3. d5 {[%clk 0:02:59.9]} 3... b5 {[%clk 0:02:59]} 4.
cxb5 {[%clk 0:02:59.4]} 4... a6 {[%clk 0:02:52.8]} 5. bxa6 {[%clk 0:02:59.3]}
5... g6 {[%clk 0:02:52.2]} 6. Nc3 {[%clk 0:02:58.5]} 6... Bg7 {[%clk 0:02:51.4]}
7. e4 {[%clk 0:02:58.5]} 7... O-O {[%clk 0:02:51.1]} 8. e5 {[%clk 0:02:57.5]}
8... Ne8 {[%clk 0:02:49.3]} 9. Nf3 {[%clk 0:02:56.6]} 9... d6 {[%clk 0:02:48]}
10. e6 {[%clk 0:02:55.6]} 10... fxe6 {[%clk 0:02:44.8]} 11. h4 {[%clk
0:02:54.3]} 11... Bxa6 {[%clk 0:02:41.9]} 12. h5 {[%clk 0:02:51.9]} 12... Bxf1
{[%clk 0:02:39.8]} 13. Kxf1 {[%clk 0:02:51.3]} 13... Nd7 {[%clk 0:02:25.2]} 14.
hxg6 {[%clk 0:02:49.4]} 14... hxg6 {[%clk 0:02:24.7]} 15. dxe6 {[%clk
0:02:39.2]} 15... Ne5 {[%clk 0:02:17.8]} 16. Nxe5 {[%clk 0:02:30.4]} 16... Bxe5
{[%clk 0:02:17.4]} 17. Qg4 {[%clk 0:02:25.5]} 17... Rf6 {[%clk 0:02:08.2]} 18.
Nd5 {[%clk 0:02:18.5]} 1-0